[Event "Titled Tuesday Blitz October 5 2021"]
[White "Guliev, Logman"]
[Black "Gabrielian, Artur"]
[WhiteFideId "13400061"]
[BlackFideId "4131002"]
[WhiteElo "2128"]
[BlackElo "2489"]
[Result "0-1"]
[Round "02"]
[TimeControl "180+1"]
[Date "2021.10.05"]
[WhiteClock "0:00:08"]
[BlackClock "0:01:01"]

1. e4 {[%clk 0:03:00]}  c5 {[%clk 0:02:59]} 2. Nf3 {[%clk 0:03:00]}  d6 {[%clk 0:03:00]} 3. d4 {[%clk 0:03:01]}  cxd4 {[%clk 0:03:00]} 4. Nxd4 {[%clk 0:03:01]}  Nf6 {[%clk 0:03:01]} 5. Nc3 {[%clk 0:03:02]}  Nc6 {[%clk 0:03:01]} 6. Be2 {[%clk 0:03:01]}  g6 {[%clk 0:02:59]} 7. O-O {[%clk 0:03:00]}  Bg7 {[%clk 0:03:00]} 8. Nb3 {[%clk 0:02:59]}  O-O {[%clk 0:03:00]} 9. Be3 {[%clk 0:02:59]}  Be6 {[%clk 0:02:58]} 10. Kh1 {[%clk 0:02:59]}  Qc8 {[%clk 0:02:56]} 11. f4 {[%clk 0:02:58]}  a5 {[%clk 0:02:50]} 12. a4 {[%clk 0:02:57]}  Nb4 {[%clk 0:02:50]} 13. Nd4 {[%clk 0:02:48]}  Bc4 {[%clk 0:02:49]} 14. Qd2 {[%clk 0:02:36]}  e5 {[%clk 0:02:47]} 15. Ndb5 {[%clk 0:02:33]}  Bxb5 {[%clk 0:02:45]} 16. Bxb5 {[%clk 0:02:30]}  Rd8 {[%clk 0:02:43]} 17. Bb6 {[%clk 0:02:23]}  Rf8 {[%clk 0:02:39]} 18. Qxd6 {[%clk 0:02:19]}  exf4 {[%clk 0:02:33]} 19. Rxf4 {[%clk 0:02:10]}  Nh5 {[%clk 0:02:28]} 20. Rf2 {[%clk 0:02:09]}  Qg4 {[%clk 0:02:14]} 21. Raf1 {[%clk 0:02:02]}  Qh4 {[%clk 0:02:07]} 22. Kg1 {[%clk 0:01:40]}  Rac8 {[%clk 0:02:03]} 23. Bd7 {[%clk 0:01:31]}  Ra8 {[%clk 0:01:56]} 24. Nd5 {[%clk 0:01:20]}  Qxe4 {[%clk 0:01:47]} 25. Ne7+ {[%clk 0:01:08]}  Kh8 {[%clk 0:01:47]} 26. Rxf7 {[%clk 0:01:06]}  Rxf7 {[%clk 0:01:45]} 27. Rxf7 {[%clk 0:01:07]}  Nxc2 {[%clk 0:01:34]} 28. h3 {[%clk 0:00:55]}  Ne3 {[%clk 0:01:25]} 29. Rf2 {[%clk 0:00:41]}  Nc4 {[%clk 0:01:15]} 30. Qd5 {[%clk 0:00:09]}  Qxd5 {[%clk 0:01:08]} 31. Nxd5 {[%clk 0:00:09]}  Nxb6 {[%clk 0:01:08]} 32. Nxb6 {[%clk 0:00:10]}  Rd8 {[%clk 0:01:08]} 33. Rd2 {[%clk 0:00:10]}  Bh6 {[%clk 0:01:02]} 34. Rd1 {[%clk 0:00:08]}  Be3+ {[%clk 0:01:01]} 0-1


[Site "https://www.chess.com"]

[Event "Titled Tuesday Blitz October 5 2021"]
[White "Hambleton, Aman"]
[Black "Melian, Juan Sebastian"]
[WhiteFideId "2606577"]
[BlackFideId "3706575"]
[WhiteElo "2552"]
[BlackElo "1672"]
[Result "1-0"]
[Round "02"]
[TimeControl "180+1"]
[Date "2021.10.05"]
[WhiteClock "0:00:06"]
[BlackClock "0:00:03"]

1. d4 {[%clk 0:03:00]}  Nf6 {[%clk 0:02:59]} 2. c4 {[%clk 0:03:00]}  e6 {[%clk 0:02:59]} 3. Nc3 {[%clk 0:02:59]}  Bb4 {[%clk 0:02:59]} 4. Qc2 {[%clk 0:02:57]}  c5 {[%clk 0:02:58]} 5. dxc5 {[%clk 0:02:50]}  Qc7 {[%clk 0:02:57]} 6. Nf3 {[%clk 0:02:18]}  a6 {[%clk 0:02:52]} 7. a3 {[%clk 0:02:14]}  Bxc5 {[%clk 0:02:51]} 8. e3 {[%clk 0:02:05]}  Be7 {[%clk 0:02:46]} 9. Be2 {[%clk 0:01:57]}  b6 {[%clk 0:02:44]} 10. b3 {[%clk 0:01:56]}  Bb7 {[%clk 0:02:44]} 11. Bb2 {[%clk 0:01:55]}  O-O {[%clk 0:02:04]} 12. g4 {[%clk 0:01:53]}  Rc8 {[%clk 0:01:45]} 13. g5 {[%clk 0:01:43]}  Ne8 {[%clk 0:01:45]} 14. Rg1 {[%clk 0:01:40]}  d6 {[%clk 0:01:34]} 15. h4 {[%clk 0:01:29]}  Nd7 {[%clk 0:01:19]} 16. h5 {[%clk 0:01:25]}  e5 {[%clk 0:01:14]} 17. g6 {[%clk 0:01:09]}  fxg6 {[%clk 0:01:11]} 18. hxg6 {[%clk 0:01:10]}  h6 {[%clk 0:01:11]} 19. O-O-O {[%clk 0:00:40]}  Nef6 {[%clk 0:01:04]} 20. Nh4 {[%clk 0:00:39]}  Nc5 {[%clk 0:01:02]} 21. Nf5 {[%clk 0:00:34]}  Bf8 {[%clk 0:00:54]} 22. f4 {[%clk 0:00:22]}  Re8 {[%clk 0:00:19]} 23. Rdf1 {[%clk 0:00:13]}  Rad8 {[%clk 0:00:14]} 24. fxe5 {[%clk 0:00:10]}  dxe5 {[%clk 0:00:15]} 25. Nxh6+ {[%clk 0:00:09]}  gxh6 {[%clk 0:00:15]} 26. Rxf6 {[%clk 0:00:08]}  Bg7 {[%clk 0:00:12]} 27. Rf7 {[%clk 0:00:08]}  Re7 {[%clk 0:00:12]} 28. b4 {[%clk 0:00:08]}  Ne6 {[%clk 0:00:11]} 29. Nd5 {[%clk 0:00:05]}  Bxd5 {[%clk 0:00:04]} 30. cxd5 {[%clk 0:00:06]}  Qxc2+ {[%clk 0:00:05]} 31. Kxc2 {[%clk 0:00:06]}  Rxd5 {[%clk 0:00:06]} 32. Bc4 {[%clk 0:00:06]}  Rc7 {[%clk 0:00:03]} 33. Rxc7 {[%clk 0:00:05]}  Nxc7 {[%clk 0:00:03]} 34. e4 {[%clk 0:00:06]} 1-0


[Site "https://www.chess.com"]

[Event "Titled Tuesday Blitz October 5 2021"]
[White "Hryshchenko, Kamila"]
[Black "Moroni, Luca Jr"]
[WhiteFideId "14147491"]
[BlackFideId "865834"]
[WhiteElo "1929"]
[BlackElo "2491"]
[Result "0-1"]
[Round "02"]
[TimeControl "180+1"]
[Date "2021.10.05"]
[WhiteClock "0:01:24"]
[BlackClock "0:00:22"]

1. Nf3 {[%clk 0:03:00]}  g6 {[%clk 0:03:00]} 2. g3 {[%clk 0:03:01]}  Bg7 {[%clk 0:03:01]} 3. Bg2 {[%clk 0:03:01]}  d6 {[%clk 0:03:01]} 4. d3 {[%clk 0:03:02]}  Bd7 {[%clk 0:03:02]} 5. O-O {[%clk 0:03:01]}  Qc8 {[%clk 0:03:02]} 6. h4 {[%clk 0:02:59]}  Bh3 {[%clk 0:03:00]} 7. c4 {[%clk 0:02:59]}  Nc6 {[%clk 0:03:00]} 8. d4 {[%clk 0:02:58]}  Nf6 {[%clk 0:02:52]} 9. Nc3 {[%clk 0:02:58]}  O-O {[%clk 0:02:51]} 10. e4 {[%clk 0:02:58]}  Bg4 {[%clk 0:02:51]} 11. Be3 {[%clk 0:02:54]}  Nd7 {[%clk 0:02:50]} 12. Qd2 {[%clk 0:02:53]}  Bxf3 {[%clk 0:02:32]} 13. Bxf3 {[%clk 0:02:52]}  e5 {[%clk 0:02:33]} 14. Ne2 {[%clk 0:02:49]}  exd4 {[%clk 0:02:32]} 15. Nxd4 {[%clk 0:02:50]}  Nxd4 {[%clk 0:02:33]} 16. Bxd4 {[%clk 0:02:50]}  Bxd4 {[%clk 0:02:32]} 17. Qxd4 {[%clk 0:02:50]}  Ne5 {[%clk 0:02:29]} 18. Bg2 {[%clk 0:02:49]}  Qe6 {[%clk 0:02:29]} 19. Rac1 {[%clk 0:02:48]}  c5 {[%clk 0:02:28]} 20. Qc3 {[%clk 0:02:45]}  Nc6 {[%clk 0:02:26]} 21. Rcd1 {[%clk 0:02:43]}  Nd4 {[%clk 0:02:18]} 22. Rxd4 {[%clk 0:02:40]}  cxd4 {[%clk 0:02:19]} 23. Qxd4 {[%clk 0:02:40]}  Qe5 {[%clk 0:02:19]} 24. Qd2 {[%clk 0:02:38]}  Rac8 {[%clk 0:02:15]} 25. b3 {[%clk 0:02:39]}  b5 {[%clk 0:02:12]} 26. cxb5 {[%clk 0:02:38]}  Qxb5 {[%clk 0:02:12]} 27. f4 {[%clk 0:02:37]}  Qc5+ {[%clk 0:02:09]} 28. Kh1 {[%clk 0:02:36]}  Qc2 {[%clk 0:02:05]} 29. Qd4 {[%clk 0:02:36]}  Qxa2 {[%clk 0:01:58]} 30. f5 {[%clk 0:02:30]}  Rc2 {[%clk 0:01:58]} 31. Bf3 {[%clk 0:02:17]}  Qxb3 {[%clk 0:01:33]} 32. h5 {[%clk 0:02:15]}  gxh5 {[%clk 0:01:14]} 33. Qxd6 {[%clk 0:02:06]}  Qe3 {[%clk 0:00:37]} 34. e5 {[%clk 0:01:49]}  Rc1 {[%clk 0:00:29]} 35. Rxc1 {[%clk 0:01:46]}  Qxc1+ {[%clk 0:00:30]} 36. Kh2 {[%clk 0:01:46]}  Qc2+ {[%clk 0:00:29]} 37. Kh3 {[%clk 0:01:38]}  Qxf5+ {[%clk 0:00:29]} 38. Kg2 {[%clk 0:01:36]}  Qc2+ {[%clk 0:00:29]} 39. Kh3 {[%clk 0:01:36]}  Qg6 {[%clk 0:00:29]} 40. Qc5 {[%clk 0:01:32]}  Re8 {[%clk 0:00:25]} 41. Qxa7 {[%clk 0:01:29]}  Qe6+ {[%clk 0:00:23]} 42. g4 {[%clk 0:01:25]}  hxg4+ {[%clk 0:00:22]} 43. Bxg4 {[%clk 0:01:25]}  Qxe5 {[%clk 0:00:22]} 44. Qg1 {[%clk 0:01:24]}  Qe3+ {[%clk 0:00:22]} 0-1


[Site "https://www.chess.com"]

[Event "Titled Tuesday Blitz October 5 2021"]
[White "Ibrahimli, Murad"]
[Black "Tologon tegin, Semetei"]
[WhiteFideId "13410229"]
[BlackFideId "13800574"]
[WhiteElo "2109"]
[BlackElo "2224"]
[Result "1/2-1/2"]
[Round "02"]
[TimeControl "180+1"]
[Date "2021.10.05"]
[WhiteClock "0:00:06"]
[BlackClock "0:00:03"]

1. e4 {[%clk 0:03:00]}  c5 {[%clk 0:02:58]} 2. Nf3 {[%clk 0:03:00]}  d6 {[%clk 0:02:59]} 3. d4 {[%clk 0:02:59]}  cxd4 {[%clk 0:03:00]} 4. Nxd4 {[%clk 0:02:59]}  Nf6 {[%clk 0:03:00]} 5. Nc3 {[%clk 0:02:59]}  g6 {[%clk 0:03:01]} 6. Be2 {[%clk 0:02:56]}  Bg7 {[%clk 0:03:01]} 7. Be3 {[%clk 0:02:56]}  O-O {[%clk 0:02:55]} 8. g4 {[%clk 0:02:56]}  d5 {[%clk 0:02:31]} 9. e5 {[%clk 0:02:21]}  Ne4 {[%clk 0:02:26]} 10. f4 {[%clk 0:02:21]}  Nxc3 {[%clk 0:02:22]} 11. bxc3 {[%clk 0:02:22]}  Nc6 {[%clk 0:02:13]} 12. h4 {[%clk 0:02:21]}  f6 {[%clk 0:01:50]} 13. exf6 {[%clk 0:02:14]}  Bxf6 {[%clk 0:01:36]} 14. h5 {[%clk 0:01:37]}  e5 {[%clk 0:01:34]} 15. Nxc6 {[%clk 0:01:35]}  bxc6 {[%clk 0:01:34]} 16. hxg6 {[%clk 0:01:35]}  exf4 {[%clk 0:01:33]} 17. gxh7+ {[%clk 0:01:34]}  Kh8 {[%clk 0:01:33]} 18. Bd4 {[%clk 0:01:26]}  Qe7 {[%clk 0:00:45]} 19. g5 {[%clk 0:00:55]}  Bg7 {[%clk 0:00:43]} 20. Kf2 {[%clk 0:00:46]}  f3 {[%clk 0:00:31]} 21. Bf1 {[%clk 0:00:32]}  c5 {[%clk 0:00:27]} 22. Bxg7+ {[%clk 0:00:23]}  Qxg7 {[%clk 0:00:28]} 23. Qxd5 {[%clk 0:00:20]}  Qxc3 {[%clk 0:00:26]} 24. Rd1 {[%clk 0:00:19]}  Bf5 {[%clk 0:00:15]} 25. Qd2 {[%clk 0:00:13]}  Qg7 {[%clk 0:00:13]} 26. Qe3 {[%clk 0:00:10]}  Bxc2 {[%clk 0:00:12]} 27. Rc1 {[%clk 0:00:07]}  Bg6 {[%clk 0:00:10]} 28. Qc3 {[%clk 0:00:07]}  Rac8 {[%clk 0:00:09]} 29. Qxg7+ {[%clk 0:00:07]}  Kxg7 {[%clk 0:00:10]} 30. Rh6 {[%clk 0:00:07]}  Bxh7 {[%clk 0:00:10]} 31. Bc4 {[%clk 0:00:07]}  Bg6 {[%clk 0:00:10]} 32. Rd1 {[%clk 0:00:07]}  Rcd8 {[%clk 0:00:10]} 33. Rxd8 {[%clk 0:00:07]}  Rxd8 {[%clk 0:00:11]} 34. Kxf3 {[%clk 0:00:08]}  Rd4 {[%clk 0:00:11]} 35. Be6 {[%clk 0:00:08]}  Rd6 {[%clk 0:00:09]} 36. Bg4 {[%clk 0:00:07]}  Ra6 {[%clk 0:00:09]} 37. Rh2 {[%clk 0:00:07]}  Ra3+ {[%clk 0:00:09]} 38. Kf4 {[%clk 0:00:07]}  Ra4+ {[%clk 0:00:09]} 39. Kg3 {[%clk 0:00:08]}  Ra3+ {[%clk 0:00:09]} 40. Kf4 {[%clk 0:00:08]}  Bf7 {[%clk 0:00:10]} 41. Rd2 {[%clk 0:00:08]}  Rxa2 {[%clk 0:00:10]} 42. Rd7 {[%clk 0:00:08]}  Ra4+ {[%clk 0:00:10]} 43. Kf5 {[%clk 0:00:08]}  Kf8 {[%clk 0:00:08]} 44. Bf3 {[%clk 0:00:07]}  Rd4 {[%clk 0:00:07]} 45. Rxa7 {[%clk 0:00:06]}  c4 {[%clk 0:00:06]} 46. Be4 {[%clk 0:00:05]}  c3 {[%clk 0:00:06]} 47. Rc7 {[%clk 0:00:05]}  Rc4 {[%clk 0:00:05]} 48. Rxc4 {[%clk 0:00:04]}  Bxc4 {[%clk 0:00:06]} 49. Ke5 {[%clk 0:00:04]}  Ke7 {[%clk 0:00:06]} 50. Kd4 {[%clk 0:00:04]}  Bf7 {[%clk 0:00:06]} 51. Kxc3 {[%clk 0:00:05]}  Ke6 {[%clk 0:00:06]} 52. Kd4 {[%clk 0:00:05]}  Be8 {[%clk 0:00:06]} 53. Ke3 {[%clk 0:00:05]}  Ke5 {[%clk 0:00:06]} 54. Kf3 {[%clk 0:00:06]}  Bh5+ {[%clk 0:00:06]} 55. Ke3 {[%clk 0:00:06]}  Bf7 {[%clk 0:00:06]} 56. Bd3 {[%clk 0:00:07]}  Bh5 {[%clk 0:00:06]} 57. Bc2 {[%clk 0:00:06]}  Bf7 {[%clk 0:00:06]} 58. Kf3 {[%clk 0:00:07]}  Bh5+ {[%clk 0:00:06]} 59. Kg3 {[%clk 0:00:07]}  Ke6 {[%clk 0:00:07]} 60. Kf4 {[%clk 0:00:07]}  Be8 {[%clk 0:00:07]} 61. Bb3+ {[%clk 0:00:07]}  Ke7 {[%clk 0:00:07]} 62. Ke5 {[%clk 0:00:07]}  Kf8 {[%clk 0:00:08]} 63. Kf6 {[%clk 0:00:07]}  Bh5 {[%clk 0:00:08]} 64. Bc2 {[%clk 0:00:07]}  Be8 {[%clk 0:00:08]} 65. Bg6 {[%clk 0:00:07]}  Bb5 {[%clk 0:00:08]} 66. Bh5 {[%clk 0:00:07]}  Bd3 {[%clk 0:00:08]} 67. Bg6 {[%clk 0:00:08]}  Bb5 {[%clk 0:00:08]} 68. Bf5 {[%clk 0:00:08]}  Be8 {[%clk 0:00:07]} 69. Bg4 {[%clk 0:00:09]}  Bf7 {[%clk 0:00:07]} 70. Bf3 {[%clk 0:00:09]}  Be8 {[%clk 0:00:07]} 71. Bd5 {[%clk 0:00:09]}  Bh5 {[%clk 0:00:07]} 72. Bc6 {[%clk 0:00:10]}  Bf7 {[%clk 0:00:07]} 73. Bd7 {[%clk 0:00:09]}  Bh5 {[%clk 0:00:07]} 74. Bf5 {[%clk 0:00:08]}  Bf7 {[%clk 0:00:07]} 75. Bg6 {[%clk 0:00:08]}  Bc4 {[%clk 0:00:07]} 76. Bh5 {[%clk 0:00:08]}  Bd3 {[%clk 0:00:07]} 77. Bf3 {[%clk 0:00:08]}  Bc2 {[%clk 0:00:06]} 78. Bg4 {[%clk 0:00:08]}  Bb1 {[%clk 0:00:06]} 79. Bf5 {[%clk 0:00:08]}  Ba2 {[%clk 0:00:06]} 80. g6 {[%clk 0:00:09]}  Kg8 {[%clk 0:00:06]} 81. g7 {[%clk 0:00:09]}  Bb3 {[%clk 0:00:05]} 82. Kg6 {[%clk 0:00:09]}  Bc2 {[%clk 0:00:03]} 83. Bxc2 {[%clk 0:00:06]} 1/2-1/2


[Site "https://www.chess.com"]

[Event "Titled Tuesday Blitz October 5 2021"]
[White "Isajevsky, Anton"]
[Black "Svane, Rasmus"]
[WhiteFideId "4142500"]
[BlackFideId "4657101"]
[WhiteElo "2510"]
[BlackElo "2643"]
[Result "1-0"]
[Round "02"]
[TimeControl "180+1"]
[Date "2021.10.05"]
[WhiteClock "0:00:11"]
[BlackClock "0:00:01"]

1. c4 {[%clk 0:03:00]}  e6 {[%clk 0:02:58]} 2. Nf3 {[%clk 0:03:00]}  d5 {[%clk 0:02:59]} 3. e3 {[%clk 0:03:00]}  a6 {[%clk 0:02:58]} 4. Nc3 {[%clk 0:02:52]}  dxc4 {[%clk 0:02:58]} 5. Bxc4 {[%clk 0:02:52]}  b5 {[%clk 0:02:58]} 6. Be2 {[%clk 0:02:20]}  Bb7 {[%clk 0:02:57]} 7. O-O {[%clk 0:02:21]}  Nf6 {[%clk 0:02:55]} 8. b3 {[%clk 0:02:20]}  c5 {[%clk 0:02:54]} 9. Bb2 {[%clk 0:02:19]}  Nbd7 {[%clk 0:02:51]} 10. a4 {[%clk 0:02:15]}  b4 {[%clk 0:02:45]} 11. Nb1 {[%clk 0:02:15]}  Be7 {[%clk 0:02:45]} 12. d3 {[%clk 0:02:09]}  O-O {[%clk 0:02:45]} 13. Nbd2 {[%clk 0:02:09]}  Nd5 {[%clk 0:02:42]} 14. Rc1 {[%clk 0:01:58]}  Bf6 {[%clk 0:02:37]} 15. d4 {[%clk 0:01:58]}  Rc8 {[%clk 0:02:32]} 16. Ne4 {[%clk 0:01:54]}  cxd4 {[%clk 0:01:54]} 17. Nxf6+ {[%clk 0:01:50]}  N7xf6 {[%clk 0:01:29]} 18. Qxd4 {[%clk 0:01:48]}  Nc3 {[%clk 0:01:28]} 19. Bxc3 {[%clk 0:01:43]}  bxc3 {[%clk 0:01:26]} 20. Bc4 {[%clk 0:01:16]}  Ne4 {[%clk 0:01:03]} 21. Rfd1 {[%clk 0:01:15]}  Qa5 {[%clk 0:00:44]} 22. Qe5 {[%clk 0:01:09]}  Qb4 {[%clk 0:00:34]} 23. Nd4 {[%clk 0:00:58]}  Nd2 {[%clk 0:00:30]} 24. Nxe6 {[%clk 0:00:49]}  fxe6 {[%clk 0:00:23]} 25. Bxe6+ {[%clk 0:00:50]}  Kh8 {[%clk 0:00:13]} 26. Bxc8 {[%clk 0:00:50]}  Bxc8 {[%clk 0:00:11]} 27. Qxc3 {[%clk 0:00:42]}  Qxc3 {[%clk 0:00:09]} 28. Rxc3 {[%clk 0:00:43]}  Ne4 {[%clk 0:00:10]} 29. Rc2 {[%clk 0:00:42]}  Bf5 {[%clk 0:00:08]} 30. f3 {[%clk 0:00:41]}  Nf6 {[%clk 0:00:06]} 31. e4 {[%clk 0:00:41]}  Be6 {[%clk 0:00:06]} 32. Rc3 {[%clk 0:00:39]}  h6 {[%clk 0:00:06]} 33. Rd6 {[%clk 0:00:39]}  Bc8 {[%clk 0:00:06]} 34. Rdc6 {[%clk 0:00:37]}  Bb7 {[%clk 0:00:07]} 35. Rc7 {[%clk 0:00:37]}  Rb8 {[%clk 0:00:06]} 36. b4 {[%clk 0:00:36]}  Kh7 {[%clk 0:00:06]} 37. b5 {[%clk 0:00:35]}  axb5 {[%clk 0:00:06]} 38. axb5 {[%clk 0:00:36]}  Bxe4 {[%clk 0:00:04]} 39. fxe4 {[%clk 0:00:34]}  Rxb5 {[%clk 0:00:04]} 40. Re7 {[%clk 0:00:30]}  Rb4 {[%clk 0:00:04]} 41. Rcc7 {[%clk 0:00:28]}  Nh5 {[%clk 0:00:02]} 42. g4 {[%clk 0:00:19]}  Nf6 {[%clk 0:00:02]} 43. Rxg7+ {[%clk 0:00:18]}  Kh8 {[%clk 0:00:03]} 44. Rg6 {[%clk 0:00:17]}  Rb1+ {[%clk 0:00:03]} 45. Kg2 {[%clk 0:00:17]}  Ng8 {[%clk 0:00:03]} 46. Rc8 {[%clk 0:00:16]}  Kh7 {[%clk 0:00:03]} 47. Rgxg8 {[%clk 0:00:13]}  h5 {[%clk 0:00:03]} 48. gxh5 {[%clk 0:00:12]}  Rb2+ {[%clk 0:00:04]} 49. Kg3 {[%clk 0:00:13]}  Rb3+ {[%clk 0:00:04]} 50. Kf4 {[%clk 0:00:13]}  Rb2 {[%clk 0:00:02]} 51. h4 {[%clk 0:00:12]}  Rf2+ {[%clk 0:00:01]} 52. Ke5 {[%clk 0:00:13]}  Rb2 {[%clk 0:00:01]} 53. Rgd8 {[%clk 0:00:11]} 1-0


[Site "https://www.chess.com"]

[Event "Titled Tuesday Blitz October 5 2021"]
[White "Iskusnyh, Sergei"]
[Black "Bach, Matthias"]
[WhiteFideId "4120027"]
[BlackFideId "4603168"]
[WhiteElo "2492"]
[BlackElo "2165"]
[Result "1-0"]
[Round "02"]
[TimeControl "180+1"]
[Date "2021.10.05"]
[WhiteClock "0:00:49"]
[BlackClock "0:00:22"]

1. d4 {[%clk 0:03:00]}  Nf6 {[%clk 0:02:59]} 2. c4 {[%clk 0:03:00]}  c5 {[%clk 0:02:59]} 3. d5 {[%clk 0:02:59]}  e6 {[%clk 0:03:00]} 4. Nc3 {[%clk 0:02:58]}  exd5 {[%clk 0:03:00]} 5. cxd5 {[%clk 0:02:59]}  d6 {[%clk 0:03:01]} 6. Nf3 {[%clk 0:02:59]}  g6 {[%clk 0:03:01]} 7. Nd2 {[%clk 0:02:56]}  Nbd7 {[%clk 0:02:57]} 8. e4 {[%clk 0:02:55]}  Bg7 {[%clk 0:02:56]} 9. Be2 {[%clk 0:02:54]}  O-O {[%clk 0:02:55]} 10. O-O {[%clk 0:02:54]}  a6 {[%clk 0:02:55]} 11. a4 {[%clk 0:02:53]}  Re8 {[%clk 0:02:50]} 12. h3 {[%clk 0:02:45]}  Rb8 {[%clk 0:02:47]} 13. a5 {[%clk 0:02:43]}  b5 {[%clk 0:02:40]} 14. axb6 {[%clk 0:02:43]}  Nxb6 {[%clk 0:02:41]} 15. Qc2 {[%clk 0:02:42]}  Qe7 {[%clk 0:02:25]} 16. Re1 {[%clk 0:01:55]}  g5 {[%clk 0:02:22]} 17. Ra3 {[%clk 0:01:52]}  h6 {[%clk 0:02:19]} 18. Bxa6 {[%clk 0:01:48]}  Bxa6 {[%clk 0:02:18]} 19. Rxa6 {[%clk 0:01:47]}  Nfxd5 {[%clk 0:02:13]} 20. Nxd5 {[%clk 0:01:35]}  Nxd5 {[%clk 0:02:12]} 21. Qa4 {[%clk 0:01:34]}  Nb4 {[%clk 0:02:01]} 22. Ra7 {[%clk 0:01:34]}  Qe6 {[%clk 0:01:40]} 23. Re3 {[%clk 0:01:17]}  Re7 {[%clk 0:00:58]} 24. Rxe7 {[%clk 0:01:13]}  Qxe7 {[%clk 0:00:58]} 25. Nf1 {[%clk 0:01:12]}  Qe5 {[%clk 0:00:46]} 26. Ng3 {[%clk 0:01:09]}  Qd4 {[%clk 0:00:30]} 27. Nf5 {[%clk 0:00:51]}  Qc4 {[%clk 0:00:30]} 28. Bd2 {[%clk 0:00:51]}  Nc2 {[%clk 0:00:22]} 29. Qxc4 {[%clk 0:00:49]} 1-0


[Site "https://www.chess.com"]

[Event "Titled Tuesday Blitz October 5 2021"]
[White "Jarocka, Liwia"]
[Black "Karttunen, Mika"]
[WhiteFideId "21807558"]
[BlackFideId "502081"]
[WhiteElo "1851"]
[BlackElo "2343"]
[Result "0-1"]
[Round "02"]
[TimeControl "180+1"]
[Date "2021.10.05"]
[WhiteClock "0:00:18"]
[BlackClock "0:00:26"]

1. d4 {[%clk 0:03:00]}  Nf6 {[%clk 0:02:59]} 2. c4 {[%clk 0:02:59]}  c5 {[%clk 0:02:59]} 3. d5 {[%clk 0:02:59]}  b5 {[%clk 0:02:59]} 4. cxb5 {[%clk 0:02:58]}  a6 {[%clk 0:02:59]} 5. bxa6 {[%clk 0:02:58]}  g6 {[%clk 0:02:56]} 6. Nc3 {[%clk 0:02:59]}  Bg7 {[%clk 0:02:56]} 7. e4 {[%clk 0:02:59]}  Qa5 {[%clk 0:02:55]} 8. Bd2 {[%clk 0:02:51]}  O-O {[%clk 0:02:38]} 9. Nf3 {[%clk 0:02:50]}  d6 {[%clk 0:02:32]} 10. Be2 {[%clk 0:02:48]}  Bxa6 {[%clk 0:02:31]} 11. O-O {[%clk 0:02:48]}  Bxe2 {[%clk 0:02:31]} 12. Qxe2 {[%clk 0:02:48]}  Qa6 {[%clk 0:02:30]} 13. Qe1 {[%clk 0:02:42]}  Qd3 {[%clk 0:02:28]} 14. Rd1 {[%clk 0:02:35]}  Qa6 {[%clk 0:01:55]} 15. Ra1 {[%clk 0:02:17]}  Nbd7 {[%clk 0:01:54]} 16. b3 {[%clk 0:02:14]}  c4 {[%clk 0:01:53]} 17. b4 {[%clk 0:02:09]}  Qa3 {[%clk 0:01:41]} 18. Nb5 {[%clk 0:02:00]}  Qd3 {[%clk 0:01:34]} 19. Bc3 {[%clk 0:01:08]}  Ra4 {[%clk 0:00:55]} 20. Rd1 {[%clk 0:01:03]}  Qxe4 {[%clk 0:00:54]} 21. Qxe4 {[%clk 0:01:01]}  Nxe4 {[%clk 0:00:54]} 22. Bxg7 {[%clk 0:01:02]}  Kxg7 {[%clk 0:00:54]} 23. Rfe1 {[%clk 0:01:02]}  Ndf6 {[%clk 0:00:47]} 24. Nd2 {[%clk 0:00:53]}  Rxb4 {[%clk 0:00:37]} 25. Nxe4 {[%clk 0:00:52]}  Rxb5 {[%clk 0:00:32]} 26. Nxf6 {[%clk 0:00:50]}  Kxf6 {[%clk 0:00:32]} 27. Rd4 {[%clk 0:00:46]}  Rc8 {[%clk 0:00:30]} 28. Rf4+ {[%clk 0:00:45]}  Kg7 {[%clk 0:00:30]} 29. h4 {[%clk 0:00:39]}  Rc7 {[%clk 0:00:30]} 30. Rc1 {[%clk 0:00:37]}  c3 {[%clk 0:00:29]} 31. Kf1 {[%clk 0:00:37]}  c2 {[%clk 0:00:29]} 32. Ke2 {[%clk 0:00:36]}  Rxd5 {[%clk 0:00:28]} 33. Rf3 {[%clk 0:00:33]}  e5 {[%clk 0:00:28]} 34. Rd3 {[%clk 0:00:32]}  Ra5 {[%clk 0:00:27]} 35. Rxd6 {[%clk 0:00:30]}  Rxa2 {[%clk 0:00:28]} 36. Rd5 {[%clk 0:00:28]}  f6 {[%clk 0:00:28]} 37. Rd2 {[%clk 0:00:28]}  h5 {[%clk 0:00:27]} 38. g3 {[%clk 0:00:27]}  Kf7 {[%clk 0:00:26]} 39. Ke3 {[%clk 0:00:27]}  Ke6 {[%clk 0:00:27]} 40. Ke2 {[%clk 0:00:27]}  Kf5 {[%clk 0:00:27]} 41. f3 {[%clk 0:00:26]}  Rc3 {[%clk 0:00:25]} 42. Kf2 {[%clk 0:00:24]}  Raa3 {[%clk 0:00:25]} 43. Rdxc2 {[%clk 0:00:17]}  Rxf3+ {[%clk 0:00:25]} 44. Kg2 {[%clk 0:00:17]}  Rxg3+ {[%clk 0:00:25]} 45. Kh2 {[%clk 0:00:18]}  Rh3+ {[%clk 0:00:26]} 0-1


[Site "https://www.chess.com"]